bitfinex-derivatives/quotes_BTCF0:USTF0_20251215
["timestamp","ask_amount","ask_price","bid_price","bid_amount"]
[1765826225304,1.2497927,85966.0,85965.0,0.02062863]
[1765826226199,1.2507927,85966.0,85965.0,0.02062863]
[1765826226397,0.87836,85966.0,85965.0,0.02062863]
[1765826226704,0.87936,85966.0,85965.0,0.02062863]
[1765826226899,0.87836,85966.0,85965.0,0.02062863]
[1765826227101,0.87936,85966.0,85965.0,0.02062863]
[1765826227304,0.87836,85966.0,85965.0,0.02062863]
[1765826227711,0.87736,85966.0,85965.0,0.02062863]
[1765826227905,0.87536,85966.0,85965.0,0.02062863]
[1765826228107,0.87636,85966.0,85965.0,0.02062863]
[1765826228300,1.23716,85966.0,85965.0,0.02062863]
[1765826228810,1.23716,85966.0,85965.0,0.01787213]
[1765826229006,0.35734,85954.0,85953.0,0.3724344]
[1765826229209,0.54734,85954.0,85953.0,1.0669844]
[1765826229510,0.19,85954.0,85953.0,1.08729025]
[1765826229902,0.54743861,85954.0,85953.0,1.08729025]
[1765826230108,0.54743861,85954.0,85953.0,0.71585585]
[1765826230313,0.55907291,85954.0,85953.0,0.71685585]
[1765826230508,0.55907291,85954.0,85953.0,0.71585585]
[1765826230707,0.55907291,85954.0,85953.0,0.71885585]
[1765826231008,0.55907291,85954.0,85953.0,0.71785585]
[1765826231196,1.11199291,85954.0,85953.0,0.02330585]
[1765826231395,1.11199291,85954.0,85950.0,4e-05]
[1765826231396,0.35734,85939.0,85926.0,1.5]
[1765826231698,1.64876,85939.0,85926.0,1.5]
[1765826231900,0.7269978,85928.0,85927.0,0.01996769]
[1765826232210,1.6503978,85928.0,85927.0,0.01996769]
[1765826232700,1.6505106,85928.0,85927.0,0.01996769]
[1765826232901,0.0116406,85908.0,85903.0,0.3608]
[1765826233108,0.00017461,85914.0,85913.0,0.69455]
[1765826233302,0.51681461,85914.0,85913.0,0.69455]
[1765826233498,0.17017461,85914.0,85913.0,0.71474958]
[1765826233900,0.00017461,85914.0,85913.0,2.21474958]
[1765826234102,0.0001128,85928.0,85927.0,0.706188]
[1765826234401,0.0801128,85928.0,85927.0,1.066988]
[1765826234605,0.02931863,85952.0,85951.0,0.7061847]
[1765826234807,0.0116326,85967.0,85951.0,0.7061847]
[1765826234808,0.0116336,85960.0,85959.0,0.35224]
[1765826235110,0.2,85960.0,85959.0,0.69455]
[1765826235613,0.20011929,85960.0,85959.0,0.69455]
[1765826235812,0.16275582,85960.0,85959.0,0.69455]
[1765826236397,0.16375582,85960.0,85959.0,0.69455]
[1765826236898,0.16375582,85960.0,85959.0,1.05535]
[1765826239113,0.87911582,85960.0,85959.0,0.69455]
[1765826239609,0.16375582,85960.0,85959.0,0.69455]
[1765826240116,0.52209582,85960.0,85959.0,1.05535]
[1765826241213,0.7269936,85959.0,85958.0,0.34231]
[1765826241405,0.9269936,85959.0,85958.0,0.34231]
[1765826241716,0.2,85959.0,85958.0,0.7061838]
[1765826242716,0.202,85959.0,85958.0,0.7061838]
[1765826243112,0.00011929,85960.0,85959.0,0.69455]
[1765826243313,0.20011929,85960.0,85959.0,1.05535]
[1765826243712,0.91547929,85960.0,85959.0,0.3608]
[1765826243909,0.91547929,85960.0,85959.0,1.05535]
[1765826244112,0.35734,85958.0,85957.0,0.0116338]
[1765826244314,0.91536,85958.0,85957.0,0.3638738]
[1765826244812,0.71536,85955.0,85954.0,0.0116342]
[1765826245013,0.89536,85955.0,85954.0,0.0116342]
[1765826245213,0.53734,85955.0,85954.0,0.7061842]
[1765826245413,0.89536,85955.0,85954.0,0.3638742]
[1765826245619,0.71536,85952.0,85951.0,0.0001745]
[1765826245919,0.89536,85952.0,85951.0,0.0001745]
[1765826246115,0.18,85952.0,85951.0,0.6947245]
[1765826246617,0.53734,85952.0,85951.0,0.6947245]
[1765826246811,0.89636,85952.0,85951.0,0.6947245]
[1765826247604,0.89636,85952.0,85951.0,0.3524145]
[1765826247914,0.89636,85952.0,85951.0,0.0001745]
[1765826248111,0.89736,85952.0,85951.0,0.0001745]
[1765826248616,0.53934,85952.0,85951.0,0.6947245]
[1765826248918,0.182,85952.0,85951.0,0.6947245]
[1765826249918,0.002,85952.0,85951.0,0.6947245]
[1765826250120,0.202,85952.0,85951.0,0.6947245]
[1765826250711,0.002,85952.0,85951.0,1.0555245]
[1765826251017,0.4697345,85968.0,85951.0,1.0555245]
[1765826251018,0.0001745,85968.0,85967.0,0.6958026]
[1765826251224,0.1701745,85968.0,85967.0,1.4174026]
[1765826252621,0.1701745,85968.0,85967.0,1.4194026]
[1765826252821,0.1701745,85968.0,85967.0,1.4214026]
[1765826253711,0.1701745,85968.0,85967.0,1.0606026]
[1765826253911,0.8679369,85968.0,85967.0,0.3628]
[1765826254114,0.8679369,85968.0,85967.0,0.004]
[1765826254520,0.68613,85953.0,85952.0,0.0116345]
[1765826254816,0.8677644,85953.0,85952.0,0.0116345]
[1765826255111,0.85613,85953.0,85951.0,0.0001745]
[1765826255317,0.68613,85952.0,85951.0,0.0118092]
[1765826255516,0.86613,85952.0,85951.0,0.0118092]
[1765826255719,0.86613,85952.0,85951.0,0.0001745]
[1765826257018,1.22693,85952.0,85951.0,0.0001745]
[1765826257216,0.86613,85952.0,85951.0,0.0001745]
[1765826257617,0.86713,85952.0,85951.0,0.0001745]
[1765826258418,1.22793,85952.0,85951.0,0.0001745]
[1765826258620,1.22693,85952.0,85951.0,0.0001745]
[1765826258826,1.22893,85952.0,85951.0,0.0001745]
[1765826260528,0.68613,85937.0,85936.0,0.3608]
[1765826260722,0.86613,85937.0,85936.0,0.3608]
[1765826261525,0.68613,85934.0,85933.0,0.0116371]
[1765826261831,0.68613,85928.0,85927.0,0.3608]
[1765826262027,0.86613,85928.0,85922.0,0.0116386]
[1765826262218,0.34414,85923.0,85922.0,0.6805186]
[1765826262418,0.52414,85923.0,85922.0,0.66888]
[1765826262619,0.86613,85923.0,85922.0,0.66888]
[1765826262817,0.68613,85922.0,85918.0,0.3608]
[1765826263020,0.68613,85914.0,85913.0,1.52019958]
[1765826263324,0.85613,85914.0,85913.0,1.52019958]
[1765826263723,0.85213,85914.0,85913.0,1.52019958]
[1765826264329,0.85213,85914.0,85913.0,1.52119958]
[1765826264925,0.85213,85914.0,85913.0,1.52319958]
[1765826267132,0.85213,85914.0,85913.0,1.53483948]
[1765826267421,0.17,85914.0,85913.0,1.53483948]
[1765826269426,0.0001745,85922.0,85921.0,0.8835988]
[1765826269631,0.1601745,85922.0,85921.0,1.2443988]
[1765826270318,0.1601745,85922.0,85921.0,0.8835988]
[1765826270723,0.1601745,85922.0,85921.0,1.2443988]
[1765826271532,0.0011745,85922.0,85921.0,1.2443988]
[1765826271731,0.6977666,85938.0,85937.0,0.6805164]
[1765826271930,1.6314466,85938.0,85937.0,0.66888]
[1765826272123,1.6314466,85938.0,85937.0,0.34362]
[1765826272324,0.6977669,85935.0,85934.0,0.011637]
[1765826272525,0.87613,85935.0,85934.0,0.355257]
[1765826272724,0.87613,85935.0,85934.0,0.680517]
[1765826272927,0.8877669,85935.0,85934.0,0.680517]
[1765826273132,0.8877669,85935.0,85934.0,0.66888]
[1765826273629,0.8937669,85935.0,85934.0,0.66888]
[1765826273824,0.88213,85935.0,85934.0,0.66888]
[1765826275131,0.88213,85935.0,85934.0,0.34362]
[1765826275334,0.88213,85935.0,85934.0,0.66888]
[1765826276036,0.88213,85935.0,85934.0,0.34362]
[1765826276735,0.68613,85933.0,85932.0,0.20308]
[1765826276935,0.87613,85933.0,85932.0,0.5467]
[1765826277439,0.68613,85927.0,85926.0,0.0001745]
[1765826277635,0.68613,85914.0,85912.0,0.0116399]
[1765826277830,1.59981,85914.0,85912.0,0.0116399]
[1765826278030,1.59981,85914.0,85911.0,0.3608]
[1765826278432,1.59981,85914.0,85911.0,0.3724401]
[1765826278940,1.59981,85914.0,85911.0,0.3608]
[1765826279838,1.59981,85914.0,85913.0,1.52319958]
[1765826280432,1.59981,85914.0,85913.0,1.52219958]
[1765826280633,1.25782,85914.0,85913.0,1.52319958]
[1765826281529,1.65782,85914.0,85913.0,0.02319958]
[1765826281735,0.6883715,85901.0,85900.0,4e-05]
[1765826282038,0.6914701,85912.0,85911.0,0.6942]
[1765826282237,0.8714701,85912.0,85911.0,0.35157]
[1765826282437,0.67983,85904.0,85903.0,1.0666411]
[1765826282641,1.61355,85904.0,85903.0,1.0666411]
[1765826283339,0.93372,85904.0,85903.0,1.0666411]
[1765826283842,1.28096,85904.0,85903.0,1.0666411]
[1765826284137,0.6800045,85922.0,85921.0,0.7058388]
[1765826284339,1.5737245,85922.0,85921.0,0.6942]
[1765826285038,0.0001745,85922.0,85921.0,0.6942]
[1765826285237,0.73372,85924.0,85921.0,0.6942]
[1765826285238,1.06304,85931.0,85930.0,0.90307]
[1765826285432,0.34724,85925.0,85924.0,0.6942]
[1765826285643,0.50724,85925.0,85924.0,0.6942]
[1765826286036,0.16,85925.0,85924.0,0.78522948]
[1765826286244,0.27,85938.0,85924.0,0.78522948]
[1765826286245,0.00017461,85933.0,85932.0,0.7058373]
[1765826286442,0.0116342,85955.0,85940.0,0.20887]
[1765826286630,0.0916342,85955.0,85954.0,0.6942]
[1765826286828,0.67983,85955.0,85954.0,0.6942]
[1765826287039,0.25,85968.0,85961.0,0.7058334]
[1765826287228,0.36312619,85978.0,85968.0,0.3632024]
[1765826287229,0.5292,85969.0,85968.0,0.3632024]
[1765826287434,0.7092,85969.0,85968.0,0.9230125]
[1765826287728,1.05644,85969.0,85968.0,0.9230125]
[1765826288444,0.7092,85969.0,85968.0,0.9230125]
[1765826288648,1.05644,85969.0,85968.0,0.9230125]
[1765826288834,1.05944,85969.0,85968.0,0.9230125]
[1765826289029,1.06144,85969.0,85968.0,0.9230125]
[1765826289343,1.05844,85969.0,85968.0,0.9230125]
[1765826289543,1.06144,85969.0,85968.0,0.9230125]
[1765826290143,0.185,85969.0,85968.0,1.2838125]
[1765826290549,0.1614706,85969.0,85968.0,1.2838125]
[1765826290935,0.1614706,85969.0,85968.0,1.2848125]
[1765826291434,0.1584706,85969.0,85968.0,1.2838125]
[1765826291640,0.1584706,85969.0,85968.0,1.2848125]
[1765826292145,0.1594706,85969.0,85968.0,1.2838125]
[1765826292547,0.8393006,85969.0,85968.0,0.3807425]
[1765826292739,0.8373006,85969.0,85968.0,0.3807425]
[1765826292944,0.8373006,85969.0,85968.0,0.7141425]
[1765826293246,0.8489329,85969.0,85968.0,0.7141425]
[1765826293445,0.8373006,85969.0,85968.0,0.7141425]
[1765826293946,1.5708206,85969.0,85968.0,0.0199425]
[1765826294249,0.67983,85962.0,85961.0,0.3608]
[1765826294544,0.6914634,85961.0,85960.0,0.0001745]
[1765826294740,0.8514634,85961.0,85960.0,0.02049414]
[1765826295141,0.34724,85941.0,85940.0,0.56044]
[1765826295335,0.86983,85941.0,85940.0,0.56044]
[1765826295535,0.19,85941.0,85940.0,0.92384087]
[1765826296146,0.19,85941.0,85940.0,0.93547707]
[1765826296342,0.19,85941.0,85940.0,1.02729008]
[1765826296545,0.003,85962.0,85961.0,0.7058334]
[1765826296740,0.3608,85979.0,85977.0,0.7058312]
[1765826297044,0.17232619,85978.0,85977.0,0.7058312]
[1765826297644,0.0116285,85998.0,85985.0,0.6942]
[1765826297645,0.0001745,85986.0,85985.0,0.6942]
[1765826297852,0.1601745,85986.0,85985.0,0.6942]
[1765826298443,0.34724,85980.0,85979.0,0.3632008]
[1765826298641,0.53724,85980.0,85979.0,0.7058308]
[1765826299040,0.19,85980.0,85979.0,0.7058308]
[1765826299244,0.0031745,85986.0,85985.0,0.7058301]
[1765826299447,0.03,85999.0,85985.0,0.7150601]
[1765826299747,1.45468,86017.0,85985.0,0.7150601]
[1765826299748,0.7196671,86007.0,86006.0,0.6942]
[1765826300043,0.0116283,85999.0,85998.0,0.6942]
[1765826300244,0.6914588,85995.0,85994.0,0.3608]
[1765826300448,0.34724,85990.0,85989.0,0.35157]
[1765826300744,0.67983,85989.0,85988.0,0.0118042]
[1765826300952,0.16,85989.0,85988.0,0.7060042]
[1765826301943,0.002,85990.0,85989.0,0.6942]
[1765826302139,0.182,85990.0,85989.0,0.6942]
[1765826302340,0.002,85990.0,85989.0,0.6942]
[1765826302643,0.202,85990.0,85989.0,0.6942]
[1765826303044,0.001,85990.0,85989.0,0.6942]
[1765826303248,0.111,85990.0,85989.0,0.6942]
[1765826303953,0.0001745,86005.0,86004.0,0.8992475]
[1765826304142,0.1901745,86005.0,86004.0,0.8992475]
[1765826305052,0.1901745,86005.0,86004.0,1.2807678]
[1765826305240,0.0600045,86005.0,86004.0,1.2807678]
[1765826305650,0.0500045,86005.0,86004.0,0.70284078]
[1765826305846,4.5e-06,86005.0,86004.0,1.39704078]
[1765826306556,0.0001745,86013.0,86012.0,0.7058265]
[1765826306756,0.1701745,86013.0,86012.0,1.0666265]
[1765826308159,0.1701745,86013.0,86012.0,1.0676265]
[1765826308353,0.1701745,86013.0,86012.0,1.0686265]
[1765826308755,0.8500045,86013.0,86012.0,0.3628]
[1765826308955,0.8500045,86013.0,86012.0,0.002]
[1765826309752,0.6914574,86005.0,86004.0,0.0207203]
[1765826309957,0.34724,85996.0,85994.0,0.3608]
[1765826310159,0.17,85996.0,85995.0,0.6942]
[1765826310366,0.17,85996.0,85995.0,0.7058288]
[1765826310761,0.17,85996.0,85995.0,0.72586265]
[1765826311163,0.84141,85996.0,85995.0,0.72586265]
[1765826311462,0.17,85996.0,85995.0,0.72586265]
[1765826311648,0.27,86009.0,86008.0,0.695227]
[1765826311855,0.0001745,86013.0,85995.0,0.02103385]
[1765826311856,0.71387,86010.0,86009.0,0.0116268]
[1765826312166,0.90387,86010.0,86009.0,0.3670068]
[1765826312462,0.90387,86010.0,86009.0,0.7098068]
[1765826312862,0.54452,86010.0,86009.0,0.7098068]
[1765826313059,0.19,86010.0,86009.0,0.7098068]
[1765826314564,0.90387,86010.0,86009.0,0.7118068]
[1765826314963,0.90387,86010.0,86009.0,0.7108068]
[1765826315161,0.19,86010.0,86009.0,0.7118068]
[1765826316357,0.90387,86010.0,86009.0,0.7108068]
[1765826316557,0.90387,86010.0,86009.0,0.0136268]
[1765826316758,0.90387,86010.0,86009.0,0.002]
[1765826317155,1.26467,86010.0,86009.0,0.002]
[1765826317357,0.90387,86010.0,86009.0,0.002]
[1765826317875,1.26467,86010.0,86009.0,0.002]
[1765826318068,1.26567,86010.0,86009.0,0.001]
[1765826318374,0.91839,86004.0,86003.0,0.0116276]
[1765826318561,1.08839,86004.0,86003.0,0.0116276]
[1765826319070,0.71387,86001.0,86000.0,0.011628]
[1765826319260,0.91387,86001.0,86000.0,0.011628]
[1765826320063,0.91487,86001.0,86000.0,0.011628]
[1765826320465,0.71387,85998.0,85997.0,0.0116284]
[1765826320664,0.90387,85998.0,85997.0,0.0116284]
[1765826320862,0.19,85998.0,85997.0,0.7098084]
[1765826321067,0.001,86001.0,86000.0,0.7098081]
[1765826321376,0.002,86010.0,86009.0,0.9124069]
[1765826321564,0.002,86010.0,86009.0,1.2732069]
[1765826321565,0.092,86010.0,86009.0,1.2732069]
[1765826321962,0.09,86010.0,86009.0,1.2732069]
[1765826323071,0.09,86010.0,86009.0,1.0716069]
[1765826323768,0.09,86010.0,86009.0,1.0736069]
[1765826323956,1e-07,86010.0,86009.0,1.0736069]
[1765826324975,0.01,86023.0,86012.0,0.7098065]
[1765826325277,0.0701745,86013.0,86012.0,0.7098065]
[1765826325873,0.8840445,86013.0,86012.0,0.7098065]
[1765826326061,0.8840445,86013.0,86012.0,0.0116265]
[1765826326467,0.8840445,86013.0,86012.0,0.0126265]
[1765826326663,0.1701745,86013.0,86012.0,0.7108065]
[1765826327167,0.20816,86033.0,86017.0,0.7098058]
[1765826327477,0.08232511,86018.0,86017.0,1.0706058]
[1765826327771,0.07232511,86018.0,86017.0,1.0706058]
[1765826328567,0.00017439,86026.0,86025.0,0.7098047]
[1765826328568,0.35469439,86026.0,86025.0,0.7098047]
[1765826328768,0.9518335,86026.0,86025.0,0.3608]
[1765826328967,0.71387,86025.0,86024.0,0.0116248]
[1765826329172,0.92003451,86025.0,86024.0,0.0116248]
[1765826329476,0.92003451,86025.0,86024.0,0.7098048]
[1765826329776,0.20616451,86025.0,86024.0,1.0706048]
[1765826329965,0.18,86025.0,86024.0,1.0706048]
[1765826330166,0.18,86025.0,86024.0,1.18685075]
[1765826330468,0.00117439,86026.0,86025.0,0.69818]
[1765826330772,0.20117439,86026.0,86025.0,0.69818]
[1765826331273,0.19117439,86026.0,86025.0,0.69818]
[1765826331473,0.19017439,86026.0,86025.0,0.69818]
[1765826331677,0.21634819,86026.0,86025.0,0.69818]
[1765826331883,0.93021819,86026.0,86025.0,0.35538]
[1765826332068,0.93021819,86026.0,86024.0,0.3734248]
[1765826332069,0.71387,86025.0,86024.0,0.3724248]
[1765826332269,0.9200438,86025.0,86024.0,0.3608]
[1765826333169,0.9200438,86025.0,86024.0,0.71618]
[1765826333472,0.2071738,86025.0,86024.0,1.05898]
[1765826333674,0.001,86025.0,86024.0,1.05898]
[1765826333874,0.181,86025.0,86024.0,1.53602595]
[1765826334276,0.002,86025.0,86024.0,1.53602595]
[1765826334464,1e-07,86025.0,86024.0,1.53602595]
[1765826334978,4.49e-06,86026.0,86025.0,0.7098047]
[1765826335184,0.06266546,86048.0,86047.0,0.7098017]
[1765826335476,0.06266546,86061.0,86057.0,0.7098004]
[1765826335666,0.06836727,86058.0,86057.0,1.0706004]
[1765826336064,0.91223727,86058.0,86057.0,1.0706004]
[1765826336466,0.91223727,86058.0,86057.0,0.3724204]
[1765826336669,0.71387,86050.0,86049.0,0.00017439]
[1765826336872,0.89991324,86050.0,86049.0,0.00017439]
[1765826337375,0.54056324,86050.0,86049.0,0.69835439]
[1765826338471,0.18604324,86050.0,86049.0,0.69935439]
[1765826338673,0.00232403,86058.0,86049.0,0.69935439]
[1765826338674,0.00232403,86058.0,86057.0,0.7098004]
[1765826338877,0.0116153,86095.0,86057.0,0.7098004]
[1765826338878,0.06266546,86076.0,86075.0,0.69818]
[1765826339177,0.06255289,86079.0,86078.0,0.35538]
[1765826339382,0.06255289,86079.0,86078.0,1.0705976]
[1765826339383,0.03,86079.0,86078.0,1.0705976]
[1765826339583,0.88387,86079.0,86078.0,0.0116176]
[1765826339778,0.94638684,86079.0,86078.0,0.0116176]
[1765826340079,0.88387,86079.0,86078.0,0.0116176]
[1765826340280,0.77638684,86079.0,86078.0,0.0322447]
[1765826340579,0.06251684,86081.0,86080.0,0.69818]
[1765826340783,0.06251508,86082.0,86081.0,0.69818]
[1765826340969,0.89387,86082.0,86081.0,0.3669971]
[1765826341171,0.7254885,86071.0,86069.0,0.3608]
[1765826341478,0.71387,86061.0,86060.0,0.3608]
[1765826341675,0.89004,86060.0,86050.0,0.3608]
[1765826341881,0.69019,86060.0,86059.0,0.0116201]
[1765826342070,0.74345682,86070.0,86069.0,0.0116188]
[1765826342270,0.86096,86070.0,86069.0,0.0116188]
[1765826342678,0.18,86070.0,86069.0,0.6909888]
[1765826342885,0.86096,86070.0,86069.0,0.0116188]
[1765826343182,0.79501682,86076.0,86075.0,0.011618]
[1765826343183,1.08781,86076.0,86075.0,0.011618]
[1765826343372,1.26781,86076.0,86075.0,0.011618]
[1765826343683,1.26781,86076.0,86075.0,0.372418]
[1765826343889,0.78252,86076.0,86075.0,1.051788]
[1765826344089,0.05,86076.0,86075.0,1.051788]
[1765826344285,0.88096,86076.0,86075.0,0.3608]
[1765826344482,0.6925789,86068.0,86066.0,0.0116192]
[1765826344789,0.68096,86067.0,86066.0,0.0116192]
[1765826344982,0.68096,86067.0,86066.0,0.3724192]
[1765826345281,0.89081,86073.0,86072.0,0.0116184]
[1765826345487,1.05081,86073.0,86072.0,0.0116184]
[1765826345673,0.51529,86073.0,86072.0,0.0116184]
[1765826345875,0.001,86076.0,86075.0,0.690988]
[1765826346077,0.021,86076.0,86075.0,1.051788]
[1765826346272,9e-08,86078.0,86077.0,0.67937]
[1765826346478,9e-08,86078.0,86077.0,0.77937]
[1765826346881,9e-08,86078.0,86077.0,0.67937]
[1765826347081,9e-08,86078.0,86077.0,0.79554707]
[1765826347298,9e-08,86078.0,86077.0,0.9690235]
[1765826347581,0.0116115,86123.0,86097.0,0.67937]
[1765826347787,0.0116115,86123.0,86097.0,1.412585]
[1765826347981,5e-08,86098.0,86097.0,1.412585]
[1765826348175,5e-08,86098.0,86097.0,1.52875937]
[1765826348382,0.21217187,86138.0,86132.0,0.6909803]
[1765826348383,0.00232187,86138.0,86132.0,0.6909803]
[1765826348674,0.2098977,86133.0,86132.0,0.6909803]
[1765826348982,0.1098977,86133.0,86132.0,0.6909803]
[1765826349184,0.00232187,86138.0,86137.0,0.6909796]
[1765826349381,0.08232187,86138.0,86137.0,0.6909796]
[1765826349876,0.76328187,86138.0,86137.0,0.0116096]
[1765826350188,0.68096,86133.0,86132.0,0.03198471]
[1765826350393,0.68328187,86138.0,86137.0,0.0116096]
[1765826350689,0.68096,86133.0,86132.0,0.02237451]
[1765826350887,0.86096,86133.0,86132.0,0.002]
[1765826351088,0.86096,86133.0,86124.0,0.00017419]
[1765826351089,0.68096,86125.0,86124.0,0.00017419]
[1765826351389,0.17,86125.0,86124.0,0.69964949]
[1765826351572,0.01,86125.0,86124.0,0.69964949]
[1765826351778,0.00232187,86138.0,86137.0,0.6909796]
[1765826352180,0.20985,86170.0,86136.0,0.0925792]
[1765826352381,0.68096,86167.0,86166.0,0.0116057]
[1765826352577,0.84096,86167.0,86166.0,0.0116057]
[1765826353174,0.68096,86163.0,86150.0,0.1623151]
[1765826353387,0.8925662,86163.0,86156.0,0.0116069]
[1765826353583,0.68096,86154.0,86153.0,0.3608]
[1765826353787,0.70096,86154.0,86153.0,0.3608]
[1765826353975,0.02,86154.0,86153.0,1.04017]
[1765826354175,0.17,86154.0,86153.0,1.04017]
[1765826354384,0.85096,86154.0,86153.0,0.3724074]
[1765826355084,0.85496,86154.0,86153.0,0.3724074]
[1765826355387,0.174,86154.0,86153.0,1.0517774]
[1765826355582,0.52929,86154.0,86153.0,0.3608]
[1765826355784,0.0116084,86146.0,86145.0,0.3608]
[1765826355983,0.2,86146.0,86145.0,0.7191885]
[1765826356380,0.2,86146.0,86145.0,1.0517785]
[1765826356775,0.68496,86154.0,86153.0,0.0116074]
[1765826356979,0.86296,86154.0,86153.0,0.3724074]
[1765826357189,0.86296,86154.0,86153.0,0.3608]
[1765826357389,0.001,86146.0,86145.0,0.3724085]
[1765826357689,0.87196,86146.0,86145.0,0.3724085]
[1765826357892,0.68096,86145.0,86144.0,0.00017419]
[1765826358086,0.88096,86145.0,86144.0,0.36097419]
[1765826358584,0.88096,86145.0,86144.0,0.00017419]
[1765826358784,0.88096,86145.0,86144.0,0.36097419]
[1765826359785,0.88196,86145.0,86144.0,0.36097419]
[1765826360679,0.88196,86145.0,86144.0,0.00017419]
[1765826361084,0.88296,86145.0,86144.0,0.00017419]
[1765826361882,0.88296,86145.0,86144.0,0.34695419]
[1765826362080,0.002,86145.0,86144.0,0.67954419]
[1765826362494,0.192,86145.0,86144.0,0.67954419]
[1765826362989,0.87296,86145.0,86144.0,0.00017419]
[1765826363591,0.002,86145.0,86144.0,0.67954419]
[1765826363801,0.73208,86159.0,86158.0,0.34678]
[1765826364091,0.2,86159.0,86158.0,0.7191868]
[1765826364595,0.2,86159.0,86158.0,1.4125768]
[1765826365286,0.35829,86159.0,86158.0,1.4125768]
[1765826365482,0.003,86159.0,86158.0,1.4125768]
[1765826365889,0.006,86159.0,86158.0,1.4125768]
[1765826366398,0.00232079,86178.0,86177.0,0.67937]
[1765826366694,0.18232079,86178.0,86177.0,1.04017]
[1765826367397,0.01232079,86178.0,86177.0,1.2426]
[1765826367597,1.45164,86208.0,86177.0,1.2426]
[1765826367598,0.0116032,86185.0,86182.0,0.0116034]
[1765826367785,0.00231971,86218.0,86190.0,0.20243]
[1765826368096,0.89081,86216.0,86215.0,0.3723991]
[1765826368286,1.06081,86216.0,86215.0,0.3723991]
[1765826368481,0.85096,86216.0,86215.0,0.3723991]
[1765826368681,0.85096,86216.0,86215.0,1.0517691]
[1765826368682,0.17,86216.0,86215.0,1.0517691]
[1765826368888,0.17,86216.0,86215.0,1.0708339]
[1765826369493,1e-08,86218.0,86217.0,0.67937]
[1765826369697,1e-08,86218.0,86217.0,0.33259]
[1765826369897,0.69096001,86218.0,86217.0,0.3608]
[1765826370198,0.83096001,86218.0,86217.0,0.3608]
[1765826370593,0.69096001,86218.0,86217.0,0.3638]
[1765826370798,0.69096001,86218.0,86217.0,0.3678]
[1765826370995,0.36529001,86218.0,86217.0,0.3678]
[1765826371299,0.01000001,86218.0,86217.0,1.05234]
[1765826371690,0.33373001,86218.0,86217.0,0.3668]
[1765826371898,0.84953001,86218.0,86217.0,0.006]
[1765826372197,0.70115,86200.0,86198.0,0.0116014]
[1765826372397,0.00099999,86240.0,86239.0,0.35752]
[1765826372592,0.00099999,86240.0,86199.0,0.4213]
[1765826372593,0.70115,86231.0,86230.0,0.0009999]
[1765826372787,0.85115,86231.0,86230.0,0.0115971]
[1765826373001,0.70115,86231.0,86230.0,0.0115971]
[1765826373298,0.86115,86231.0,86230.0,0.0115971]
[1765826373887,0.86115,86231.0,86220.0,0.0115984]
[1765826373888,0.70115,86221.0,86220.0,0.0115984]
[1765826374201,0.70115,86218.0,86217.0,0.002]
[1765826374394,0.70115,86218.0,86217.0,0.0135988]
[1765826374701,0.70115,86218.0,86211.0,0.00017398]
[1765826374902,0.70115,86218.0,86217.0,0.0115988]
[1765826375492,0.19912,86220.0,86217.0,0.0115988]
[1765826375689,0.7356,86225.0,86224.0,0.0115979]
[1765826375994,0.17,86225.0,86224.0,0.0115979]
[1765826376498,0.73552,86226.0,86224.0,0.0115979]
[1765826376698,0.90027,86240.0,86239.0,0.0115959]
[1765826377001,1.02027,86240.0,86239.0,0.7331959]
[1765826377801,1.02027,86240.0,86239.0,0.7216]
[1765826378700,1.02027,86240.0,86220.0,0.16174398]
[1765826378701,0.3558,86225.0,86224.0,0.0135979]
[1765826378897,1.57647,86225.0,86224.0,0.0145979]
[1765826379205,1.57655,86225.0,86224.0,0.0125979]
[1765826379593,1.57655,86225.0,86224.0,0.0115979]
[1765826379794,1.57655,86225.0,86224.0,0.0145979]
[1765826380296,1.57655,86225.0,86224.0,0.0135979]
[1765826380991,1.57655,86225.0,86224.0,0.0125979]
[1765826381203,1.93735,86225.0,86224.0,0.001]
[1765826381900,0.70115,86217.0,86216.0,0.00017398]
[1765826382098,0.88115,86217.0,86216.0,0.00017398]
[1765826383005,0.88115,86217.0,86216.0,0.00117398]
[1765826383207,0.18,86217.0,86216.0,0.69551398]
[1765826383391,0.02,86217.0,86216.0,0.69551398]
[1765826383591,0.002,86225.0,86224.0,0.7059379]
[1765826383902,0.75496,86225.0,86224.0,1.0667379]
[1765826384491,0.72496,86225.0,86224.0,1.0667379]
[1765826384801,0.08355395,86242.0,86232.0,0.0115968]
[1765826385006,0.06017293,86233.0,86232.0,1.0667368]
[1765826385704,0.76132293,86233.0,86232.0,0.3723968]
[1765826385904,0.77291963,86233.0,86232.0,0.001]
[1765826386204,0.77291963,86233.0,86224.0,0.3608]
[1765826386205,0.70115,86225.0,86224.0,0.3608]
[1765826386499,0.85115,86225.0,86224.0,0.3608]
[1765826387090,0.72115,86225.0,86224.0,0.3608]
[1765826387591,1.60579,86225.0,86224.0,0.3608]
[1765826387796,1.43579,86225.0,86224.0,0.3608]
[1765826388307,1.45579,86225.0,86224.0,0.3608]
[1765826388793,1.6273877,86225.0,86224.0,0.3608]
[1765826388995,1.6273877,86225.0,86216.0,0.00017398]
[1765826388996,0.70115,86217.0,86216.0,0.00017398]
[1765826389198,0.72115,86217.0,86216.0,0.00017398]
[1765826389804,0.90115,86217.0,86216.0,0.00017398]
[1765826390404,0.71115,86217.0,86216.0,0.00017398]
[1765826390703,0.70115,86217.0,86216.0,0.00017398]
[1765826390905,0.70115,86230.0,86229.0,0.0115972]
[1765826391108,0.08355395,86240.0,86232.0,0.7059368]
[1765826391293,0.92877293,86233.0,86232.0,0.7059368]
[1765826391497,0.72877293,86233.0,86232.0,0.7059368]
[1765826391694,0.70115,86229.0,86228.0,0.0115972]
[1765826391895,0.70115,86225.0,86224.0,0.0115978]
[1765826392098,0.70115,86222.0,86221.0,0.0115982]
[1765826392308,1.46547,86222.0,86221.0,0.0115982]
[1765826392510,0.76432,86222.0,86221.0,0.0115982]
[1765826392702,0.76432,86222.0,86221.0,0.7059382]
[1765826393005,0.76432,86222.0,86221.0,0.0115982]
[1765826393006,0.92432,86222.0,86221.0,0.0115982]
[1765826393207,1.26967,86222.0,86221.0,0.0115982]